[Event "*** Titled Tuesday Blitz"]
[Site "Chess.com"]
[Date "2019.08.06"]
[Round "9"]
[White "Olga_Girya"]
[Black "NTBT_DHS"]
[Result "0-1"]
[WhiteElo "2497"]
[BlackElo "2649"]
[TimeControl "180+2"]
[EndTime "15:09:24 PDT"]
[Termination "NTBT_DHS won by checkmate"]

1. d4 {[%clk 0:02:57.6]} 1... Nf6 {[%clk 0:02:58]} 2. c4 {[%clk 0:02:58.5]} 2...
g6 {[%clk 0:02:57.9]} 3. Nc3 {[%clk 0:02:58.7]} 3... Bg7 {[%clk 0:02:59]} 4. e4
{[%clk 0:02:59.7]} 4... d6 {[%clk 0:02:59.8]} 5. Be2 {[%clk 0:03:00.9]} 5... O-O
{[%clk 0:02:58.2]} 6. Be3 {[%clk 0:03:02.4]} 6... e5 {[%clk 0:02:57.6]} 7. d5
{[%clk 0:02:56.5]} 7... a5 {[%clk 0:02:53.4]} 8. g4 {[%clk 0:02:56.7]} 8... Na6
{[%clk 0:02:53.1]} 9. g5 {[%clk 0:02:57.7]} 9... Nd7 {[%clk 0:02:51]} 10. h4
{[%clk 0:02:59.2]} 10... f5 {[%clk 0:02:49.7]} 11. gxf6 {[%clk 0:02:57.7]} 11...
Nxf6 {[%clk 0:02:49.7]} 12. h5 {[%clk 0:02:58.8]} 12... Qe8 {[%clk 0:02:31.7]}
13. h6 {[%clk 0:02:41.1]} 13... Bh8 {[%clk 0:02:30.1]} 14. Nh3 {[%clk
0:02:42.7]} 14... Bxh3 {[%clk 0:02:23]} 15. Rxh3 {[%clk 0:02:42.7]} 15... Nc5
{[%clk 0:02:16.9]} 16. Bxc5 {[%clk 0:02:41.2]} 16... dxc5 {[%clk 0:02:18.8]} 17.
Qd2 {[%clk 0:02:16]} 17... Qd7 {[%clk 0:02:18.3]} 18. Rg3 {[%clk 0:02:14.3]}
18... Ne8 {[%clk 0:02:18.4]} 19. O-O-O {[%clk 0:02:09]} 19... Nd6 {[%clk
0:02:19.4]} 20. Rdg1 {[%clk 0:02:10.2]} 20... Rf4 {[%clk 0:02:17]} 21. Bg4
{[%clk 0:02:04.5]} 21... Qe7 {[%clk 0:02:06.3]} 22. Be6+ {[%clk 0:02:02.9]}
22... Kf8 {[%clk 0:02:06.3]} 23. Qe2 {[%clk 0:01:46.3]} 23... Qh4 {[%clk
0:02:02.9]} 24. f3 {[%clk 0:01:06.8]} 24... Qxh6 {[%clk 0:01:55]} 25. Kb1 {[%clk
0:01:07.9]} 25... Rh4 {[%clk 0:01:54]} 26. R3g2 {[%clk 0:00:57.3]} 26... Bf6
{[%clk 0:01:51.2]} 27. b3 {[%clk 0:00:52.2]} 27... Kg7 {[%clk 0:01:50.9]} 28.
Qf2 {[%clk 0:00:52.6]} 28... Rf8 {[%clk 0:01:49.8]} 29. Qxc5 {[%clk 0:00:52.4]}
29... Bd8 {[%clk 0:01:48.7]} 30. Nb5 {[%clk 0:00:45]} 30... Nxb5 {[%clk
0:01:37.4]} 31. Qxb5 {[%clk 0:00:46.1]} 31... Qe3 {[%clk 0:01:32.2]} 32. Qd7+
{[%clk 0:00:46.2]} 32... Kh6 {[%clk 0:01:31]} 33. Bf5 {[%clk 0:00:33]} 33...
Qd3+ {[%clk 0:00:51.5]} 34. Kb2 {[%clk 0:00:33.4]} 34... Qd4+ {[%clk 0:00:49.2]}
35. Kc2 {[%clk 0:00:34.5]} 35... Rxf5 {[%clk 0:00:47]} 36. exf5 {[%clk
0:00:27.8]} 36... Bg5 {[%clk 0:00:36.6]} 37. Rxg5 {[%clk 0:00:25.5]} 37... Rh2+
{[%clk 0:00:34]} 38. R5g2 {[%clk 0:00:26]} 38... Qxg1 {[%clk 0:00:30.5]} 39.
Rxh2+ {[%clk 0:00:26.3]} 39... Qxh2+ {[%clk 0:00:32.4]} 40. Kc3 {[%clk
0:00:26.4]} 40... Qh3 {[%clk 0:00:30.9]} 41. Qxc7 {[%clk 0:00:23.9]} 41... Qxf3+
{[%clk 0:00:31.8]} 42. Kb2 {[%clk 0:00:25.4]} 42... Qxf5 {[%clk 0:00:30.3]} 43.
d6 {[%clk 0:00:24.9]} 43... Qf2+ {[%clk 0:00:25.8]} 44. Ka3 {[%clk 0:00:21.4]}
44... Qf8 {[%clk 0:00:27.1]} 45. Qe7 {[%clk 0:00:21.6]} 45... Qf1 {[%clk
0:00:20.7]} 46. d7 {[%clk 0:00:19.5]} 46... b5 {[%clk 0:00:21.8]} 47. cxb5
{[%clk 0:00:19.1]} 47... Qc1+ {[%clk 0:00:22.8]} 48. Ka4 {[%clk 0:00:18.9]}
48... Qd2 {[%clk 0:00:23.8]} 49. Qh4+ {[%clk 0:00:18.7]} 49... Kg7 {[%clk
0:00:24.5]} 50. d8=Q {[%clk 0:00:19.8]} 50... Qxa2# {[%clk 0:00:25.1]} 0-1

[Event "*** Titled Tuesday Blitz"]
[Site "Chess.com"]
[Date "2019.08.06"]
[Round "9"]
[White "medalja"]
[Black "qqwow"]
[Result "1-0"]
[WhiteElo "2376"]
[BlackElo "2534"]
[TimeControl "180+2"]
[EndTime "15:09:24 PDT"]
[Termination "medalja won by resignation"]

1. d4 {[%clk 0:03:01.9]} 1... f5 {[%clk 0:02:59.4]} 2. g3 {[%clk 0:02:54.3]}
2... Nf6 {[%clk 0:03:00.3]} 3. Bg2 {[%clk 0:02:55]} 3... e6 {[%clk 0:03:02]} 4.
Nf3 {[%clk 0:02:56.1]} 4... Be7 {[%clk 0:03:03.7]} 5. O-O {[%clk 0:02:57.5]}
5... O-O {[%clk 0:03:05.4]} 6. c4 {[%clk 0:02:58.7]} 6... d6 {[%clk 0:03:07.1]}
7. b3 {[%clk 0:02:56.8]} 7... Ne4 {[%clk 0:03:07.2]} 8. Ba3 {[%clk 0:02:55.7]}
8... Bf6 {[%clk 0:03:07.4]} 9. Qc2 {[%clk 0:02:50.5]} 9... a5 {[%clk 0:03:07.2]}
10. Nbd2 {[%clk 0:02:50.2]} 10... Nxd2 {[%clk 0:03:01]} 11. Qxd2 {[%clk
0:02:49.1]} 11... Nd7 {[%clk 0:02:42]} 12. Rad1 {[%clk 0:02:39.7]} 12... Qe7
{[%clk 0:02:40.5]} 13. Qc2 {[%clk 0:02:32.2]} 13... c6 {[%clk 0:02:38]} 14. e4
{[%clk 0:02:30.5]} 14... fxe4 {[%clk 0:02:37.5]} 15. Qxe4 {[%clk 0:02:32.4]}
15... a4 {[%clk 0:02:12.4]} 16. Bb4 {[%clk 0:02:00.6]} 16... axb3 {[%clk
0:02:09.4]} 17. axb3 {[%clk 0:02:02.5]} 17... c5 {[%clk 0:02:08.6]} 18. dxc5
{[%clk 0:02:01.5]} 18... Nxc5 {[%clk 0:02:09.4]} 19. Qe3 {[%clk 0:01:58]} 19...
Bd7 {[%clk 0:02:01.3]} 20. Nd4 {[%clk 0:01:40.6]} 20... Rad8 {[%clk 0:01:37.3]}
21. Rfe1 {[%clk 0:01:33.7]} 21... e5 {[%clk 0:01:33.7]} 22. Bd5+ {[%clk
0:01:04.9]} 22... Kh8 {[%clk 0:01:34.2]} 23. Ba3 {[%clk 0:00:41.1]} 23... Bg5
{[%clk 0:01:23.9]} 24. Qe2 {[%clk 0:00:37.8]} 24... Qf6 {[%clk 0:01:19.4]} 25.
Nc2 {[%clk 0:00:24.4]} 25... Nxb3 {[%clk 0:01:12.4]} 26. Bxb7 {[%clk 0:00:21.2]}
26... Nd4 {[%clk 0:00:50.6]} 27. Nxd4 {[%clk 0:00:21.9]} 27... exd4 {[%clk
0:00:52.5]} 28. f4 {[%clk 0:00:21.9]} 28... Bh6 {[%clk 0:00:50.5]} 29. Qd3
{[%clk 0:00:18.4]} 29... Bxf4 {[%clk 0:00:46.4]} 30. gxf4 {[%clk 0:00:19]} 30...
Qxf4 {[%clk 0:00:48.3]} 31. Rf1 {[%clk 0:00:18.7]} 31... Qg5+ {[%clk 0:00:46.3]}
32. Qg3 {[%clk 0:00:19.5]} 32... Qa5 {[%clk 0:00:45.2]} 33. Bxd6 {[%clk
0:00:19.6]} 33... Rxf1+ {[%clk 0:00:40.8]} 34. Rxf1 {[%clk 0:00:21.5]} 34... Qb6
{[%clk 0:00:37.7]} 35. Be5 {[%clk 0:00:21.4]} 35... d3+ {[%clk 0:00:38.5]} 36.
Rf2 {[%clk 0:00:20.9]} 36... Qh6 {[%clk 0:00:33.2]} 37. Qxd3 {[%clk 0:00:13.2]}
37... Qg5+ {[%clk 0:00:24.4]} 38. Qg3 {[%clk 0:00:13.6]} 38... Qe7 {[%clk
0:00:23.4]} 39. Bd5 {[%clk 0:00:14]} 39... Re8 {[%clk 0:00:22.1]} 40. Bd4 {[%clk
0:00:13.2]} 40... Qe1+ {[%clk 0:00:23]} 41. Kg2 {[%clk 0:00:14]} 41... Qe7
{[%clk 0:00:24.8]} 42. Rf7 {[%clk 0:00:10.6]} 42... Qe2+ {[%clk 0:00:23.4]} 43.
Qf2 {[%clk 0:00:12]} 43... Qg4+ {[%clk 0:00:23.5]} 44. Kh1 {[%clk 0:00:12.2]}
44... Qd1+ {[%clk 0:00:22.1]} 45. Kg2 {[%clk 0:00:13.4]} 45... Qg4+ {[%clk
0:00:22.8]} 46. Kh1 {[%clk 0:00:11.9]} 46... Qd1+ {[%clk 0:00:23.6]} 47. Qg1
{[%clk 0:00:13.2]} 47... Qxd4 {[%clk 0:00:22.4]} 48. Qxd4 {[%clk 0:00:13.5]} 1-0

[Event "*** Titled Tuesday Blitz"]
[Site "Chess.com"]
[Date "2019.08.06"]
[Round "9"]
[White "NoGalloNoParty"]
[Black "nitpicker"]
[Result "1-0"]
[WhiteElo "2315"]
[BlackElo "2225"]
[TimeControl "180+2"]
[EndTime "15:09:26 PDT"]
[Termination "NoGalloNoParty won on time"]

1. d4 {[%clk 0:03:01.9]} 1... Nf6 {[%clk 0:02:59.6]} 2. c4 {[%clk 0:03:01.9]}
2... e6 {[%clk 0:02:57.6]} 3. g3 {[%clk 0:03:02.5]} 3... d5 {[%clk 0:02:55.9]}
4. Nf3 {[%clk 0:03:02.4]} 4... Bb4+ {[%clk 0:02:51.1]} 5. Bd2 {[%clk 0:03:01.7]}
5... Be7 {[%clk 0:02:50.3]} 6. Bg2 {[%clk 0:03:02.6]} 6... O-O {[%clk
0:02:50.4]} 7. O-O {[%clk 0:03:02.7]} 7... c6 {[%clk 0:02:51.7]} 8. Qc2 {[%clk
0:02:58.7]} 8... b6 {[%clk 0:02:51.8]} 9. Nc3 {[%clk 0:02:55.6]} 9... Ba6 {[%clk
0:02:50.7]} 10. cxd5 {[%clk 0:02:54.2]} 10... cxd5 {[%clk 0:02:43.1]} 11. Bf4
{[%clk 0:02:54.1]} 11... Nc6 {[%clk 0:02:26.9]} 12. h4 {[%clk 0:02:48.2]} 12...
Rc8 {[%clk 0:02:23.2]} 13. Qb1 {[%clk 0:02:42.5]} 13... h6 {[%clk 0:02:19.7]}
14. Rd1 {[%clk 0:02:35.3]} 14... Na5 {[%clk 0:02:20.3]} 15. Ne5 {[%clk
0:02:22.4]} 15... Bb4 {[%clk 0:02:14.4]} 16. Qc1 {[%clk 0:02:10]} 16... Kh7
{[%clk 0:01:54.8]} 17. Qe3 {[%clk 0:02:01.3]} 17... Nc4 {[%clk 0:01:32.2]} 18.
Nxc4 {[%clk 0:01:58.3]} 18... Rxc4 {[%clk 0:01:22.3]} 19. Rac1 {[%clk
0:01:50.7]} 19... Qc8 {[%clk 0:01:14.8]} 20. a3 {[%clk 0:01:28.6]} 20... Be7
{[%clk 0:01:05.3]} 21. Nb1 {[%clk 0:01:08.6]} 21... b5 {[%clk 0:01:01.6]} 22.
Nd2 {[%clk 0:01:07.9]} 22... Rxc1 {[%clk 0:01:01.1]} 23. Qd3+ {[%clk 0:00:51.8]}
23... Kg8 {[%clk 0:01:00]} 24. Rxc1 {[%clk 0:00:51.8]} 24... Qxc1+ {[%clk
0:00:59.4]} 25. Nf1 {[%clk 0:00:52.9]} 25... Qc4 {[%clk 0:00:58]} 26. Qd2 {[%clk
0:00:53.1]} 26... Kh7 {[%clk 0:00:51.9]} 27. Bf3 {[%clk 0:00:51.3]} 27... Rc8
{[%clk 0:00:46.8]} 28. Kg2 {[%clk 0:00:51.2]} 28... Qc2 {[%clk 0:00:44.4]} 29.
Qa5 {[%clk 0:00:51.7]} 29... Qa4 {[%clk 0:00:41.4]} 30. Qd2 {[%clk 0:00:51.1]}
30... b4 {[%clk 0:00:37.3]} 31. g4 {[%clk 0:00:44.7]} 31... bxa3 {[%clk
0:00:33.6]} 32. bxa3 {[%clk 0:00:44.8]} 32... Ne4 {[%clk 0:00:24.6]} 33. Bxe4+
{[%clk 0:00:40.2]} 33... dxe4 {[%clk 0:00:25.5]} 34. Ng3 {[%clk 0:00:37.3]}
34... Bb7 {[%clk 0:00:23.5]} 35. Qe3 {[%clk 0:00:35.3]} 35... Qc6 {[%clk
0:00:19]} 36. g5 {[%clk 0:00:35.1]} 36... hxg5 {[%clk 0:00:18.7]} 37. Bxg5
{[%clk 0:00:33.7]} 37... Bf8 {[%clk 0:00:17.4]} 38. Qf4 {[%clk 0:00:32.7]} 38...
e3+ {[%clk 0:00:16.2]} 39. f3 {[%clk 0:00:33.8]} 39... f6 {[%clk 0:00:16.8]} 40.
Ne4 {[%clk 0:00:28]} 40... Be7 {[%clk 0:00:11.6]} 41. Qh2 {[%clk 0:00:22.1]}
41... Rh8 {[%clk 0:00:05.4]} 42. Bf4 {[%clk 0:00:21.1]} 42... Kg8 {[%clk
0:00:05.6]} 43. Qg3 {[%clk 0:00:22.2]} 43... Kf7 {[%clk 0:00:05]} 44. Bxe3
{[%clk 0:00:18.7]} 44... Bxa3 {[%clk 0:00:04.4]} 45. Bf2 {[%clk 0:00:16.7]}
45... Be7 {[%clk 0:00:04.8]} 46. Qf4 {[%clk 0:00:15.1]} 1-0

[Event "*** Titled Tuesday Blitz"]
[Site "Chess.com"]
[Date "2019.08.06"]
[Round "9"]
[White "XiaoKangZhong"]
[Black "tonyq11"]
[Result "1/2-1/2"]
[WhiteElo "2328"]
[BlackElo "2204"]
[TimeControl "180+2"]
[EndTime "15:09:26 PDT"]
[Termination "Game drawn by repetition"]

1. e4 {[%clk 0:03:01.9]} 1... e5 {[%clk 0:03:01]} 2. Nf3 {[%clk 0:03:02.3]} 2...
Nc6 {[%clk 0:03:02]} 3. Bc4 {[%clk 0:03:03.2]} 3... Bc5 {[%clk 0:03:01.9]} 4.
O-O {[%clk 0:03:04.6]} 4... Nf6 {[%clk 0:03:00.3]} 5. d3 {[%clk 0:03:05.1]} 5...
h6 {[%clk 0:03:00.8]} 6. c3 {[%clk 0:03:06.4]} 6... d6 {[%clk 0:02:53.2]} 7. h3
{[%clk 0:03:04.7]} 7... a5 {[%clk 0:02:53.6]} 8. a4 {[%clk 0:03:00.3]} 8... O-O
{[%clk 0:02:53.6]} 9. Re1 {[%clk 0:03:00.8]} 9... Ba7 {[%clk 0:02:48.5]} 10.
Nbd2 {[%clk 0:03:00.9]} 10... Ne7 {[%clk 0:02:47]} 11. Nf1 {[%clk 0:03:00.8]}
11... Ng6 {[%clk 0:02:43.8]} 12. Ng3 {[%clk 0:03:01.8]} 12... c6 {[%clk
0:02:41.5]} 13. Bb3 {[%clk 0:02:57.8]} 13... Qc7 {[%clk 0:02:39.4]} 14. d4
{[%clk 0:02:54.5]} 14... Be6 {[%clk 0:02:33.3]} 15. d5 {[%clk 0:02:36.7]} 15...
Bd7 {[%clk 0:02:25]} 16. Be3 {[%clk 0:02:21.7]} 16... Bxe3 {[%clk 0:02:22.2]}
17. Rxe3 {[%clk 0:02:21]} 17... c5 {[%clk 0:02:08.2]} 18. Nd2 {[%clk 0:02:16.3]}
18... b5 {[%clk 0:02:07.2]} 19. axb5 {[%clk 0:02:16.3]} 19... Bxb5 {[%clk
0:02:07.8]} 20. Ba4 {[%clk 0:02:14.2]} 20... Qb6 {[%clk 0:01:54.5]} 21. Bxb5
{[%clk 0:01:58.2]} 21... Qxb5 {[%clk 0:01:54.2]} 22. Qc2 {[%clk 0:01:58.4]}
22... a4 {[%clk 0:01:52.7]} 23. Nf5 {[%clk 0:01:56.4]} 23... Ra6 {[%clk
0:01:45]} 24. c4 {[%clk 0:01:51.4]} 24... Qb4 {[%clk 0:01:31.2]} 25. Rea3 {[%clk
0:01:45.5]} 25... Rfa8 {[%clk 0:01:27.8]} 26. g3 {[%clk 0:01:41.4]} 26... Ne8
{[%clk 0:01:14.7]} 27. Kg2 {[%clk 0:01:37]} 27... Kf8 {[%clk 0:00:54.5]} 28.
R1a2 {[%clk 0:01:29.3]} 28... Ne7 {[%clk 0:00:53.9]} 29. Nxe7 {[%clk 0:01:27.8]}
29... Kxe7 {[%clk 0:00:55.8]} 30. Qd1 {[%clk 0:01:28.3]} 30... Kf8 {[%clk
0:00:54.7]} 31. b3 {[%clk 0:01:28.3]} 31... Nf6 {[%clk 0:00:24.6]} 32. Rxa4
{[%clk 0:01:22.4]} 32... Rxa4 {[%clk 0:00:22.5]} 33. Rxa4 {[%clk 0:01:24.3]}
33... Rxa4 {[%clk 0:00:23]} 34. bxa4 {[%clk 0:01:26.2]} 34... Ke8 {[%clk
0:00:20.9]} 35. Qc2 {[%clk 0:01:24.3]} 35... Nd7 {[%clk 0:00:20.8]} 36. Qa2
{[%clk 0:01:22.4]} 36... Qa5 {[%clk 0:00:19.9]} 37. Nb3 {[%clk 0:01:10.6]} 37...
Qa6 {[%clk 0:00:20.9]} 38. a5 {[%clk 0:01:05.1]} 38... Qxc4 {[%clk 0:00:19.3]}
39. a6 {[%clk 0:01:01.9]} 39... Qxe4+ {[%clk 0:00:20.5]} 40. f3 {[%clk
0:01:02.1]} 40... Qxd5 {[%clk 0:00:21.3]} 41. a7 {[%clk 0:01:03.4]} 41... Nb6
{[%clk 0:00:22.2]} 42. Qa3 {[%clk 0:00:45.4]} 42... c4 {[%clk 0:00:17.2]} 43.
Qa6 {[%clk 0:00:26.9]} 43... Na8 {[%clk 0:00:10.6]} 44. Qc8+ {[%clk 0:00:21.1]}
44... Ke7 {[%clk 0:00:11.8]} 45. Na5 {[%clk 0:00:21.6]} 45... Qd2+ {[%clk
0:00:11.1]} 46. Kf1 {[%clk 0:00:22.9]} 46... Qd1+ {[%clk 0:00:11.2]} 47. Kf2
{[%clk 0:00:23.9]} 47... Qd2+ {[%clk 0:00:11.9]} 48. Kf1 {[%clk 0:00:25.2]}
48... Qd1+ {[%clk 0:00:07]} 49. Kf2 {[%clk 0:00:26]} 49... Qd2+ {[%clk
0:00:06.1]} 50. Kf1 {[%clk 0:00:27.2]} 1/2-1/2

[Event "*** Titled Tuesday Blitz"]
[Site "Chess.com"]
[Date "2019.08.06"]
[Round "9"]
[White "Micki-taryan"]
[Black "ElHelvetico"]
[Result "1-0"]
[WhiteElo "2951"]
[BlackElo "2698"]
[TimeControl "180+2"]
[EndTime "15:09:33 PDT"]
[Termination "Micki-taryan won by resignation"]

1. Nf3 {[%clk 0:03:01.9]} 1... f5 {[%clk 0:03:00.5]} 2. d3 {[%clk 0:02:59]} 2...
Nc6 {[%clk 0:03:00.7]} 3. d4 {[%clk 0:03:00]} 3... e6 {[%clk 0:02:59.7]} 4. c3
{[%clk 0:03:01]} 4... Nf6 {[%clk 0:03:00.1]} 5. Bg5 {[%clk 0:03:02.5]} 5... Be7
{[%clk 0:02:59.4]} 6. Nbd2 {[%clk 0:03:03]} 6... d5 {[%clk 0:03:00.1]} 7. e3
{[%clk 0:03:03.4]} 7... O-O {[%clk 0:03:00.6]} 8. Bb5 {[%clk 0:03:03.7]} 8...
Bd7 {[%clk 0:03:00.2]} 9. Bxc6 {[%clk 0:03:03.8]} 9... Bxc6 {[%clk 0:03:01.7]}
10. O-O {[%clk 0:03:04.3]} 10... Bb5 {[%clk 0:02:56.5]} 11. Re1 {[%clk
0:03:05.1]} 11... a5 {[%clk 0:02:48.2]} 12. Ne5 {[%clk 0:03:02.2]} 12... a4
{[%clk 0:02:33.4]} 13. Rc1 {[%clk 0:03:01.9]} 13... c5 {[%clk 0:02:31.8]} 14.
Ndf3 {[%clk 0:02:53.2]} 14... Ne4 {[%clk 0:02:25.2]} 15. Bxe7 {[%clk 0:02:53.5]}
15... Qxe7 {[%clk 0:02:27.1]} 16. dxc5 {[%clk 0:02:53.7]} 16... Qxc5 {[%clk
0:02:24.6]} 17. Nd4 {[%clk 0:02:53.1]} 17... Qd6 {[%clk 0:02:13.3]} 18. Nxb5
{[%clk 0:02:41]} 18... Qxe5 {[%clk 0:02:14]} 19. Qd4 {[%clk 0:02:42.9]} 19...
Qxd4 {[%clk 0:01:47]} 20. exd4 {[%clk 0:02:44.8]} 20... Ra6 {[%clk 0:01:25.5]}
21. f3 {[%clk 0:02:45.3]} 21... Nf6 {[%clk 0:01:17.2]} 22. Nc7 {[%clk
0:02:36.2]} 22... Rb6 {[%clk 0:01:17.9]} 23. Rc2 {[%clk 0:02:35.6]} 23... a3
{[%clk 0:00:47]} 24. bxa3 {[%clk 0:02:31.7]} 24... Rc6 {[%clk 0:00:45.3]} 25.
Nxe6 {[%clk 0:02:29.7]} 25... Re8 {[%clk 0:00:46.8]} 26. Rce2 {[%clk 0:02:30.2]}
26... Rxc3 {[%clk 0:00:47.9]} 27. a4 {[%clk 0:02:25.9]} 27... Ra3 {[%clk
0:00:48.3]} 28. h3 {[%clk 0:02:19]} 28... Rxa4 {[%clk 0:00:45.3]} 29. g4 {[%clk
0:02:20.5]} 29... fxg4 {[%clk 0:00:45.6]} 30. hxg4 {[%clk 0:02:22.4]} 30... h6
{[%clk 0:00:47.1]} 31. Kf2 {[%clk 0:02:22.1]} 31... Kf7 {[%clk 0:00:39.6]} 32.
Re5 {[%clk 0:02:18.5]} 32... Rxa2+ {[%clk 0:00:37.9]} 33. Kg3 {[%clk 0:02:19.7]}
33... Ra3 {[%clk 0:00:36.1]} 34. Kg2 {[%clk 0:02:21.2]} 34... Ra2+ {[%clk
0:00:36.4]} 35. Kg3 {[%clk 0:02:22.6]} 35... Ra3 {[%clk 0:00:38]} 36. Kg2 {[%clk
0:02:24.1]} 36... Rc8 {[%clk 0:00:33.2]} 37. Nc5 {[%clk 0:02:21.8]} 37... b6
{[%clk 0:00:32.8]} 38. Re7+ {[%clk 0:02:22.7]} 38... Kf8 {[%clk 0:00:22.6]} 39.
Nd7+ {[%clk 0:02:14.8]} 39... Nxd7 {[%clk 0:00:23.8]} 40. Rxd7 {[%clk
0:02:15.7]} 40... Rc2+ {[%clk 0:00:25.5]} 41. Kg3 {[%clk 0:02:15.1]} 41... Rcc3
{[%clk 0:00:27.1]} 42. Rf1 {[%clk 0:02:13.1]} 42... Ra5 {[%clk 0:00:25.9]} 43.
Re1 {[%clk 0:02:13.5]} 43... Raa3 {[%clk 0:00:26.5]} 44. Rf1 {[%clk 0:02:14.4]}
44... Ra5 {[%clk 0:00:28]} 45. Rb7 {[%clk 0:02:13.5]} 45... Ra4 {[%clk
0:00:24.9]} 46. Re1 {[%clk 0:02:13.6]} 46... Raa3 {[%clk 0:00:24.4]} 47. Rf1
{[%clk 0:02:15]} 47... Rab3 {[%clk 0:00:23]} 48. Kf4 {[%clk 0:02:15.6]} 48...
Kg8 {[%clk 0:00:20.2]} 49. Ke5 {[%clk 0:02:09.1]} 49... Rxf3 {[%clk 0:00:20.5]}
50. Rxf3 {[%clk 0:02:11]} 50... Rxf3 {[%clk 0:00:21.7]} 51. Kxd5 {[%clk
0:02:12.9]} 51... Rf4 {[%clk 0:00:21.8]} 52. Ke5 {[%clk 0:02:08.5]} 52... Rxg4
{[%clk 0:00:22.2]} 53. d5 {[%clk 0:02:10.4]} 53... Rg1 {[%clk 0:00:20.1]} 54. d6
{[%clk 0:02:11.7]} 54... Rd1 {[%clk 0:00:18.4]} 55. d7 {[%clk 0:02:09.6]} 55...
Kh7 {[%clk 0:00:19.1]} 56. Ke6 {[%clk 0:02:10.5]} 56... h5 {[%clk 0:00:19.7]}
57. Rxb6 {[%clk 0:02:11.5]} 57... Re1+ {[%clk 0:00:18.2]} 58. Kf7 {[%clk
0:02:11.6]} 58... Rd1 {[%clk 0:00:19.2]} 59. Ke7 {[%clk 0:02:13.1]} 59... Rxd7+
{[%clk 0:00:12.6]} 60. Kxd7 {[%clk 0:02:15]} 60... h4 {[%clk 0:00:14.2]} 61. Ke6
{[%clk 0:02:11.7]} 61... Kg6 {[%clk 0:00:14.5]} 62. Rb1 {[%clk 0:02:11.5]} 62...
Kg5 {[%clk 0:00:14.1]} 63. Ke5 {[%clk 0:02:13]} 63... Kg4 {[%clk 0:00:15.3]} 64.
Ke4 {[%clk 0:02:12]} 64... Kg3 {[%clk 0:00:16.5]} 65. Ke3 {[%clk 0:02:08.5]}
65... Kg2 {[%clk 0:00:17.5]} 66. Rb5 {[%clk 0:02:09.5]} 66... h3 {[%clk
0:00:11.8]} 67. Rg5+ {[%clk 0:02:11.4]} 67... Kf1 {[%clk 0:00:13]} 68. Rf5+
{[%clk 0:02:02]} 68... Kg2 {[%clk 0:00:13.7]} 69. Rf2+ {[%clk 0:02:03.9]} 69...
Kg1 {[%clk 0:00:14.5]} 70. Ra2 {[%clk 0:02:05.4]} 70... h2 {[%clk 0:00:10]} 71.
Kf3 {[%clk 0:02:06.7]} 71... h1=Q+ {[%clk 0:00:07.3]} 72. Kg3 {[%clk 0:02:07.4]}
1-0

[Event "*** Titled Tuesday Blitz"]
[Site "Chess.com"]
[Date "2019.08.06"]
[Round "9"]
[White "Kimster98"]
[Black "Marcus_Harvey"]
[Result "1/2-1/2"]
[WhiteElo "2614"]
[BlackElo "2765"]
[TimeControl "180+2"]
[EndTime "15:09:37 PDT"]
[Termination "Game drawn by agreement"]

1. Nf3 {[%clk 0:03:01.9]} 1... Nf6 {[%clk 0:02:57.3]} 2. c4 {[%clk 0:03:01.1]}
2... b6 {[%clk 0:02:57.2]} 3. g3 {[%clk 0:03:00.3]} 3... Bb7 {[%clk 0:02:58.2]}
4. Bg2 {[%clk 0:03:01.9]} 4... e6 {[%clk 0:03:00]} 5. O-O {[%clk 0:02:58.4]}
5... Be7 {[%clk 0:03:01.4]} 6. Nc3 {[%clk 0:02:59.6]} 6... O-O {[%clk 0:03:02]}
7. d4 {[%clk 0:02:58.6]} 7... Ne4 {[%clk 0:03:02.7]} 8. Nxe4 {[%clk 0:02:59.9]}
8... Bxe4 {[%clk 0:03:03]} 9. Nh4 {[%clk 0:03:01.5]} 9... Bxg2 {[%clk
0:03:01.6]} 10. Nxg2 {[%clk 0:03:03.4]} 10... d5 {[%clk 0:02:57]} 11. Qa4 {[%clk
0:03:03]} 11... Qd7 {[%clk 0:02:54.8]} 12. Qxd7 {[%clk 0:03:00.2]} 12... Nxd7
{[%clk 0:02:56.7]} 13. cxd5 {[%clk 0:03:01.6]} 13... exd5 {[%clk 0:02:56.1]} 14.
Nf4 {[%clk 0:02:54.7]} 14... Nf6 {[%clk 0:02:52.8]} 15. Bd2 {[%clk 0:02:47.4]}
15... Rac8 {[%clk 0:02:53.9]} 16. Rac1 {[%clk 0:02:46.3]} 16... Rfd8 {[%clk
0:02:52.9]} 17. Rfd1 {[%clk 0:02:37.2]} 17... c6 {[%clk 0:02:52.7]} 18. Nd3
{[%clk 0:02:35.1]} 18... Ne4 {[%clk 0:02:52.3]} 19. Be3 {[%clk 0:02:31.3]} 19...
f6 {[%clk 0:02:40.9]} 20. f3 {[%clk 0:02:19.7]} 20... Nd6 {[%clk 0:02:40.4]} 21.
Bf4 {[%clk 0:02:18.5]} 21... g5 {[%clk 0:02:36.4]} 22. Bxd6 {[%clk 0:02:19.4]}
22... Bxd6 {[%clk 0:02:38.3]} 23. b4 {[%clk 0:02:04.2]} 23... Kf7 {[%clk
0:02:37.5]} 24. Rc2 {[%clk 0:02:04.7]} 24... Rc7 {[%clk 0:02:36]} 25. Rdc1
{[%clk 0:02:05.9]} 25... Rdc8 {[%clk 0:02:37.5]} 26. a4 {[%clk 0:02:03]} 26...
Ke6 {[%clk 0:02:31.3]} 27. Kf2 {[%clk 0:01:58.8]} 27... h5 {[%clk 0:02:28.6]}
28. h3 {[%clk 0:01:58]} 28... h4 {[%clk 0:02:07]} 29. g4 {[%clk 0:01:58.1]}
29... f5 {[%clk 0:02:07.8]} 30. gxf5+ {[%clk 0:01:53.5]} 30... Kxf5 {[%clk
0:02:09.7]} 31. a5 {[%clk 0:01:43.2]} 31... Bg3+ {[%clk 0:02:06]} 32. Kf1 {[%clk
0:01:44]} 32... Bf4 {[%clk 0:02:04.6]} 33. Nxf4 {[%clk 0:01:42.8]} 33... gxf4
{[%clk 0:01:42.7]} 34. axb6 {[%clk 0:01:22.2]} 34... axb6 {[%clk 0:01:42.3]} 35.
b5 {[%clk 0:01:20.2]} 35... c5 {[%clk 0:01:39.5]} 36. dxc5 {[%clk 0:01:21.3]}
36... Rxc5 {[%clk 0:01:36.9]} 37. Rxc5 {[%clk 0:01:22.1]} 37... bxc5 {[%clk
0:01:38.3]} 38. b6 {[%clk 0:01:23.4]} 38... c4 {[%clk 0:01:37]} 39. Ke1 {[%clk
0:01:22.3]} 39... Ke5 {[%clk 0:01:34.1]} 40. Kd2 {[%clk 0:01:14.8]} 40... Kd6
{[%clk 0:01:29.8]} 41. Kc3 {[%clk 0:01:12.1]} 41... Kc5 {[%clk 0:01:26.9]} 42.
b7 {[%clk 0:01:11.8]} 42... d4+ {[%clk 0:01:26.2]} 43. Kd2 {[%clk 0:01:12.5]}
43... Rb8 {[%clk 0:01:27.3]} 44. Rb1 {[%clk 0:01:14]} 44... Kc6 {[%clk
0:01:21.2]} 45. Rb4 {[%clk 0:01:14.4]} 45... Rxb7 {[%clk 0:01:11.2]} 46. Rxc4+
{[%clk 0:01:14.6]} 46... Kd5 {[%clk 0:01:12.4]} 47. Rc8 {[%clk 0:01:11.9]} 47...
Rb2+ {[%clk 0:00:52.9]} 48. Ke1 {[%clk 0:01:11.9]} 48... Ra2 {[%clk 0:00:48.3]}
49. Rf8 {[%clk 0:00:42.5]} 49... Ke5 {[%clk 0:00:46.6]} 50. Re8+ {[%clk
0:00:40]} 50... Kf5 {[%clk 0:00:45.9]} 51. Rf8+ {[%clk 0:00:37.9]} 51... Ke5
{[%clk 0:00:46.8]} 52. Rh8 {[%clk 0:00:32]} 52... d3 {[%clk 0:00:47.6]} 53. exd3
{[%clk 0:00:32.2]} 53... Kd4 {[%clk 0:00:45.4]} 54. Re8 {[%clk 0:00:27.9]} 54...
Kxd3 {[%clk 0:00:45.5]} 55. Re4 {[%clk 0:00:28.1]} 55... Rh2 {[%clk 0:00:38.6]}
56. Rxf4 {[%clk 0:00:22]} 56... Rxh3 {[%clk 0:00:39.6]} 57. Kf2 {[%clk
0:00:22.2]} 1/2-1/2